fUSD/lending_fUSD_20250503
["ID","MTS","AMOUNT","RATE_DAILY","PERIOD"]
[359695347,1746259459843,-450.0,0.0001979,2]
[359695348,1746259459866,-450.0,0.0001979,2]
[359695349,1746259459890,-514.8,0.0001979,2]
[359695350,1746259459915,-450.0,0.0001979,2]
[359695351,1746259459939,-1279.96,0.0001979,2]
[359695352,1746259459962,-450.0,0.0001979,2]
[359695353,1746259459986,-557.91,0.0001979,2]
[359695354,1746259460010,-537.62,0.0001979,2]
[359695355,1746259460034,-450.0,0.0001979,2]
[359695356,1746259460059,-450.0,0.0001979,2]
[359695357,1746259460085,-450.0,0.0001979,2]
[359695358,1746259460110,-450.0,0.0001979,2]
[359695359,1746259460134,-450.0,0.0001979,2]
[359695360,1746259460159,-500.0,0.0001979,2]
[359695361,1746259460184,-459.59199346,0.0001979,2]
[359695362,1746259460209,-450.0,0.0001979,2]
[359695363,1746259460232,-450.0,0.0001979,2]
[359695364,1746259460256,-460.00979211,0.0001979,2]
[359695365,1746259460285,-450.0,0.0001979,2]
[359695366,1746259460310,-450.0,0.0001979,2]
[359695367,1746259460336,-450.0,0.0001979,2]
[359695368,1746259460363,-450.0,0.0001979,2]
[359695369,1746259460388,-450.0,0.0001979,2]
[359695370,1746259460412,-450.0,0.0001979,2]
[359695371,1746259460440,-557.02,0.0001979,2]
[359695372,1746259460464,-1765.72,0.0001979,2]
[359695373,1746259460487,-528.6678994,0.0001979,2]
[359695374,1746259460513,-585.39,0.0001979,2]
[359695375,1746259460536,-612.62,0.0001979,2]
[359695376,1746259460559,-450.0,0.0001979,2]
[359695377,1746259460583,-594.59,0.0001979,2]
[359695378,1746259460610,-450.0,0.0001979,2]
[359695379,1746259460633,-450.0,0.0001979,2]
[359695380,1746259460657,-450.0,0.0001979,2]
[359695381,1746259460683,-450.0,0.0001979,2]
[359695382,1746259460707,-453.07780868,0.0001979,2]
[359695383,1746259460731,-574.04184124,0.0001979,2]
[359695384,1746259460754,-450.0,0.0001979,2]
[359695385,1746259460779,-450.0,0.0001979,2]
[359695386,1746259460805,-450.0,0.0001979,2]
[359695387,1746259460830,-474.6439651,0.0001979,2]
[359695388,1746259460858,-700.54,0.0001979,2]
[359695389,1746259460883,-450.0,0.0001979,2]
[359695390,1746259460910,-5529.17,0.0001979,2]
[359695391,1746259460936,-704.07,0.0001979,2]
[359695392,1746259460961,-500.0,0.0001979,2]
[359695393,1746259460986,-100800.28,0.0001979,2]
[359695394,1746259461011,-455.81877184,0.0001979,2]
[359695395,1746259461037,-450.0,0.0001979,2]
[359695396,1746259461062,-450.0,0.0001979,2]
[359695397,1746259461089,-575.21,0.0001979,2]
[359695398,1746259461139,-450.0,0.0001979,2]
[359695399,1746259461185,-450.0,0.0001979,2]
[359695400,1746259461232,-833.59,0.0001979,2]
[359695401,1746259461282,-450.0,0.0001979,2]
[359695402,1746259461329,-850.06,0.0001979,2]
[359695403,1746259461376,-450.0,0.0001979,2]
[359695404,1746259461423,-450.0,0.0001979,2]
[359695405,1746259461470,-662.52,0.0001979,2]
[359695406,1746259461517,-843.73,0.0001979,2]
[359695407,1746259461566,-450.0,0.0001979,2]
[359695408,1746259461611,-650.25,0.0001979,2]
[359695409,1746259461656,-465.70645498,0.00019791,2]
[359695410,1746259461701,-508.60103004,0.00019791,2]
[359695411,1746259461747,-450.0,0.00019791,2]
[359695412,1746259461791,-450.0,0.00019791,2]
[359695413,1746259461836,-467.16555624,0.00019791,2]
[359695414,1746259461883,-450.0,0.00019791,2]
[359695415,1746259461929,-450.0,0.00019791,2]
[359695416,1746259461975,-280.41542805,0.00019791,2]
[359695417,1746259462023,-458.57145334,0.00019791,2]
[359695418,1746259462073,-450.0,0.00019791,2]
[359695419,1746259462121,-450.0,0.00019791,2]
[359695420,1746259462168,-450.0,0.00019791,2]
[359695421,1746259462211,-292.94772989,0.00019791,2]
[359695422,1746259462277,-450.0,0.00019791,2]
[359695423,1746259462333,-400.0,0.00019791,2]
[359695424,1746259462381,-462.06104761,0.00019791,2]
[359695425,1746259462427,-450.8842483,0.00019791,2]
[359695426,1746259462475,-450.0,0.00019791,2]
[359695427,1746259462523,-450.0,0.00019791,2]
[359695428,1746259462570,-450.0,0.00019791,2]
[359695429,1746259462617,-450.0,0.00019791,2]
[359695430,1746259462667,-450.0,0.00019791,2]
[359695431,1746259462715,-464.73510131,0.00019791,2]
[359695432,1746259462760,-174.9801478,0.00019791,2]
[359695433,1746259462804,-454.77688327,0.00019791,2]
[359695434,1746259462852,-450.0,0.00019791,2]
[359695435,1746259462898,-461.61077379,0.00019791,2]
[359695436,1746259462947,-450.0,0.00019791,2]
[359695437,1746259462997,-511.81097139,0.00019791,2]
[359695438,1746259463043,-450.0,0.00019791,2]
[359695439,1746259463092,-209.66031942,0.00019791,2]
[359695440,1746259463140,-450.0,0.00019791,2]
[359695441,1746259463187,-463.4728732,0.00019791,2]
[359695442,1746259463234,-455.19200784,0.00019791,2]
[359695443,1746259463284,-450.0,0.00019791,2]
[359695444,1746259463333,-450.0,0.00019791,2]
[359695445,1746259463383,-450.0,0.00019791,2]
[359695446,1746259463433,-450.0,0.00019791,2]
[359695447,1746259463480,-450.0,0.00019791,2]
[359695448,1746259463527,-458.69585145,0.00019791,2]
[359695449,1746259463575,-460.39154639,0.00019791,2]
[359695450,1746259463626,-187.30163152,0.00019791,2]
[359695451,1746259463676,-450.0,0.00019791,2]
[359695452,1746259463724,-422.48929855,0.00019791,2]
[359695453,1746259463771,-450.0,0.00019791,2]
[359695454,1746259464087,-450.0,0.00019791,2]
[359695455,1746259464136,-551.81459421,0.00019791,2]
[359695456,1746259464184,-451.69715909,0.00019791,2]
[359695457,1746259464233,-490.80740096,0.00019791,2]
[359695458,1746259464284,-458.62889494,0.00019791,2]
[359695459,1746259464336,-453.1380823,0.00019791,2]
[359695460,1746259464386,-458.59137477,0.00019791,2]
[359695461,1746259464435,-541.54312412,0.00019791,2]
[359695462,1746259464481,-466.05294086,0.00019791,2]
[359695463,1746259464533,-450.0,0.00019791,2]
[359695464,1746259464579,-450.0,0.00019791,2]
[359695465,1746259464630,-450.0,0.00019791,2]
[359695466,1746259464677,-450.0,0.00019791,2]
[359695467,1746259464726,-543.34072332,0.00019791,2]
[359695468,1746259464774,-450.0,0.00019791,2]
[359695469,1746259464820,-450.0,0.00019791,2]
[359695470,1746259464865,-549.79965944,0.00019791,2]
[359695471,1746259464912,-450.0,0.00019791,2]
[359695472,1746259464959,-456.07881166,0.00019791,2]
[359695473,1746259465006,-450.0,0.00019791,2]
[359695474,1746259465055,-453.79764017,0.00019791,2]
[359695475,1746259465104,-451.38174898,0.00019791,2]
[359695476,1746259465153,-450.0,0.00019791,2]
[359695477,1746259465201,-450.0,0.00019791,2]
[359695478,1746259465250,-450.0,0.00019791,2]
[359695479,1746259465301,-456.44987318,0.00019791,2]
[359695480,1746259465358,-450.0,0.00019791,2]
[359695481,1746259465408,-450.0,0.00019791,2]
[359695482,1746259465459,-511.00277674,0.00019791,2]
[359695483,1746259465508,-450.0,0.00019791,2]
[359695484,1746259465555,-338.46519621,0.00019791,2]
[359695485,1746259465604,-450.0,0.00019791,2]
[359695486,1746259465653,-450.0,0.00019791,2]
[359695487,1746259465699,-458.68066729,0.00019791,2]
[359695488,1746259465746,-450.0,0.00019791,2]
[359695489,1746259465794,-450.0,0.00019791,2]
[359695490,1746259465842,-450.0,0.00019791,2]
[359695491,1746259465891,-531.6,0.00019791,2]
[359695492,1746259465939,-451.25811092,0.00019791,2]
[359695493,1746259465988,-450.0,0.00019791,2]
[359695494,1746259466038,-450.0,0.00019791,2]
[359695495,1746259466088,-450.0,0.00019791,2]
[359695496,1746259466141,-360.48986982,0.00019791,2]
[359695497,1746259466191,-575.17022421,0.00019791,2]
[359695498,1746259466244,-745.93,0.00019791,2]
[359695499,1746259466292,-451.35710344,0.00019791,2]
[359695500,1746259466342,-450.0,0.00019791,2]
[359695501,1746259466393,-450.0,0.00019791,2]
[359695502,1746259466440,-452.69641313,0.00019791,2]
[359695503,1746259466493,-453.41837964,0.00019791,2]
[359695504,1746259466540,-450.0,0.00019791,2]
[359695505,1746259466592,-456.81281871,0.00019791,2]
[359695506,1746259466640,-471.89724677,0.00019791,2]
[359695507,1746259466689,-450.0,0.00019791,2]
[359695508,1746259466734,-459.9237648,0.00019791,2]
[359695509,1746259466780,-510.62493618,0.00019791,2]
[359695510,1746259466826,-514.35950052,0.00019791,2]
[359695511,1746259466872,-450.0,0.00019791,2]
[359695512,1746259466919,-492.01,0.00019791,2]
[359695513,1746259466965,-453.79042884,0.00019791,2]
[359695514,1746259467015,-454.28951644,0.00019791,2]
[359695515,1746259467067,-470.11296413,0.00019791,2]
[359695516,1746259467114,-450.0,0.00019791,2]
[359695517,1746259467164,-450.0,0.00019791,2]
[359695518,1746259467219,-453.61311552,0.00019791,2]
[359695519,1746259467277,-450.0,0.00019791,2]
[359695520,1746259467324,-450.0,0.00019791,2]
[359695521,1746259467369,-532.13143049,0.00019791,2]
[359695522,1746259467415,-453.66456275,0.00019791,2]
[359695523,1746259467461,-450.0,0.00019791,2]
[359695524,1746259467507,-450.0,0.00019791,2]
[359695525,1746259467555,-450.0,0.00019791,2]
[359695526,1746259467601,-450.0,0.00019791,2]
[359695527,1746259467647,-450.0,0.00019791,2]
[359695528,1746259467693,-464.80758447,0.00019791,2]
[359695529,1746259467742,-450.0,0.00019791,2]
[359695530,1746259467788,-291.61659977,0.00019791,2]
[359695531,1746259467834,-450.0,0.00019791,2]
[359695532,1746259467884,-450.0,0.00019791,2]
[359695533,1746259467931,-530.0097799,0.00019791,2]
[359695534,1746259467977,-450.0,0.00019791,2]
[359695535,1746259468026,-450.0,0.00019791,2]
[359695536,1746259468084,-451.7472726,0.00019791,2]
[359695537,1746259468131,-451.79410968,0.00019791,2]
[359695538,1746259468178,-450.0,0.00019791,2]
[359695539,1746259468225,-458.09576628,0.00019791,2]
[359695540,1746259468278,-458.12645793,0.00019791,2]
[359695541,1746259468329,-450.0,0.00019791,2]
[359695542,1746259468378,-528.76617119,0.00019791,2]
[359695543,1746259468428,-514.11987862,0.00019791,2]
[359695544,1746259468478,-463.13601846,0.00019791,2]
[359695545,1746259468526,-450.0,0.00019791,2]
[359695546,1746259468575,-470.25958695,0.00019791,2]
[359695547,1746259468626,-461.68143915,0.00019791,2]
[359695548,1746259468674,-450.0,0.00019791,2]
[359695549,1746259468727,-452.81437711,0.00019791,2]
[359695550,1746259468775,-450.0,0.00019791,2]
[359695551,1746259468824,-521.72,0.00019791,2]
[359695552,1746259468872,-452.07740755,0.00019791,2]
[359695553,1746259468925,-500.0,0.00019791,2]
[359695554,1746259468974,-456.51588979,0.00019791,2]
[359695555,1746259469030,-455.7816725,0.00019791,2]
[359695556,1746259469082,-450.0,0.00019791,2]
[359695557,1746259469130,-450.0,0.00019791,2]
[359695558,1746259469175,-451.30827284,0.00019791,2]
[359695559,1746259469223,-450.0,0.00019791,2]
[359695560,1746259469270,-557.19671814,0.00019791,2]
[359695561,1746259469317,-450.0,0.00019791,2]
[359695562,1746259469364,-450.0,0.00019791,2]
[359695563,1746259469409,-450.0,0.00019791,2]
[359695564,1746259469455,-450.0,0.00019791,2]
[359695565,1746259469500,-577.13900387,0.00019791,2]
[359695566,1746259469545,-450.0,0.00019791,2]
[359695567,1746259469590,-450.0,0.00019791,2]
[359695568,1746259469634,-450.0,0.00019791,2]
[359695569,1746259469679,-460.33146785,0.00019791,2]
[359695570,1746259469726,-513.9307347,0.00019791,2]
[359695571,1746259469772,-450.0,0.00019791,2]
[359695572,1746259469818,-1028.07,0.00019791,2]
[359695573,1746259469865,-454.15766944,0.00019791,2]
[359695574,1746259469914,-450.65593922,0.00019791,2]
[359695575,1746259469961,-450.0,0.00019791,2]
[359695576,1746259470006,-450.0,0.00019791,2]
[359695577,1746259470053,-450.0,0.00019791,2]
[359695578,1746259470101,-450.0,0.00019791,2]
[359695579,1746259470150,-450.0,0.00019791,2]
[359695580,1746259470198,-450.0,0.00019791,2]
[359695581,1746259470245,-450.0,0.00019791,2]
[359695582,1746259470294,-450.0,0.00019791,2]
[359695583,1746259470344,-450.0,0.00019791,2]
[359695584,1746259470394,-507.50137896,0.00019791,2]
[359695585,1746259470441,-450.0,0.00019791,2]
[359695586,1746259470487,-451.8451888,0.00019791,2]
[359695587,1746259470534,-458.9656163,0.00019791,2]
[359695588,1746259470582,-901.61,0.00019791,2]
[359695589,1746259470627,-464.28960227,0.00019791,2]
[359695590,1746259470675,-450.0,0.00019791,2]
[359695591,1746259470721,-170.32455258,0.00019791,2]
[359695592,1746259470768,-450.0,0.00019791,2]
[359695593,1746259470814,-450.0,0.00019791,2]
[359695594,1746259470868,-450.0,0.00019791,2]
[359695595,1746259470918,-450.0,0.00019791,2]
[359695596,1746259470965,-463.29739586,0.00019791,2]
[359695597,1746259471014,-450.0,0.00019791,2]
[359695598,1746259471064,-450.0,0.00019791,2]
[359695599,1746259471115,-1366.24,0.00019791,2]
[359695600,1746259471167,-450.0,0.00019791,2]
[359695601,1746259471216,-450.0,0.00019791,2]
[359695602,1746259471266,-450.0,0.00019791,2]
[359695603,1746259471318,-504.17,0.00019791,2]
[359695604,1746259471366,-345.24211647,0.00019791,2]
[359695605,1746259471413,-450.0,0.00019791,2]
[359695606,1746259471463,-454.51941518,0.00019791,2]
[359695607,1746259471513,-450.94581624,0.00019791,2]
[359695608,1746259471562,-450.0,0.00019791,2]
[359695609,1746259471606,-459.14189254,0.00019791,2]
[359695610,1746259471652,-458.0496719,0.00019791,2]
[359695611,1746259471700,-585.14,0.00019791,2]
[359695612,1746259471745,-457.4781337,0.00019791,2]
[359695613,1746259471790,-440.77523653,0.00019791,2]
[359695614,1746259471840,-459.75853087,0.00019791,2]
[359695615,1746259471886,-450.0,0.00019791,2]
[359695616,1746259471934,-593.01,0.00019791,2]
[359695617,1746259471977,-1626.53,0.00019791,2]
[359695618,1746259472029,-461.97073702,0.00019791,2]
[359695619,1746259472078,-450.0,0.00019791,2]
[359695620,1746259472128,-450.0,0.00019791,2]
[359695621,1746259472175,-461.7374295,0.00019791,2]
[359695622,1746259472222,-571.79742032,0.00019791,2]
[359695623,1746259472275,-559.41839643,0.00019791,2]
[359695624,1746259472328,-704.35,0.00019791,2]
[359695625,1746259472373,-451.94074929,0.00019791,2]
[359695626,1746259472420,-450.0,0.00019791,2]
[359695627,1746259472465,-450.0,0.00019791,2]
[359695628,1746259472511,-469.08222109,0.00019791,2]
[359695629,1746259472558,-462.77202,0.00019791,2]
[359695630,1746259472605,-529.28,0.00019791,2]
[359695631,1746259472652,-455.89658818,0.00019791,2]
[359695632,1746259472697,-453.03052878,0.00019791,2]
[359695633,1746259472742,-571.61467499,0.00019791,2]
[359695634,1746259472789,-543.34716341,0.00019791,2]
[359695635,1746259473039,-413.31884609,0.00019791,2]
[359695636,1746259473088,-636.91,0.00019791,2]
[359695637,1746259473136,-450.0,0.00019791,2]
[359695638,1746259473186,-450.0,0.00019791,2]
[359695639,1746259473234,-556.2443405,0.00019791,2]
[359695640,1746259473286,-479.1111315,0.00019791,2]
[359695641,1746259473337,-450.0,0.00019791,2]
[359695642,1746259473387,-450.0,0.00019791,2]
[359695643,1746259473440,-577.92678261,0.00019791,2]
[359695644,1746259473490,-450.0,0.00019791,2]
[359695645,1746259473540,-677.52,0.00019791,2]
[359695646,1746259473592,-450.0,0.00019791,2]
[359695647,1746259473643,-450.0,0.00019791,2]
[359695648,1746259473697,-659.1,0.00019791,2]
[359695649,1746259473747,-367.20424382,0.00019791,2]
[359695650,1746259473798,-450.0,0.00019791,2]
[359695651,1746259473851,-450.0,0.00019791,2]
[359695652,1746259473901,-450.0,0.00019791,2]
[359695653,1746259473955,-450.0,0.00019791,2]
[359695654,1746259474005,-450.0,0.00019791,2]
[359695655,1746259474056,-450.0,0.00019791,2]
[359695656,1746259474111,-518.20718707,0.00019791,2]
[359695657,1746259474160,-450.0,0.00019791,2]
[359695658,1746259474209,-450.0,0.00019791,2]
[359695659,1746259474258,-450.0,0.00019791,2]
[359695660,1746259474309,-456.99971652,0.00019791,2]
[359695661,1746259474358,-454.44353216,0.00019791,2]
[359695662,1746259474409,-450.0,0.00019791,2]
[359695663,1746259474459,-450.0,0.00019791,2]
[359695664,1746259474506,-450.0,0.00019791,2]
[359695665,1746259474557,-450.0,0.00019791,2]
[359695666,1746259474604,-450.0,0.00019791,2]
[359695667,1746259474654,-450.0,0.00019791,2]
[359695668,1746259474700,-450.0,0.00019791,2]
[359695669,1746259474749,-457.6489693,0.00019791,2]
[359695670,1746259474795,-450.0,0.00019791,2]
[359695671,1746259474843,-192.34263817,0.00019791,2]
[359695672,1746259474890,-515.61962014,0.00019791,2]
[359695673,1746259474938,-450.0,0.00019791,2]
[359695674,1746259474985,-450.0,0.00019791,2]
[359695675,1746259475034,-898.29,0.00019791,2]
[359695676,1746259475082,-500.0,0.00019791,2]
[359695677,1746259475129,-450.0,0.00019791,2]
[359695678,1746259475177,-457.33262042,0.00019791,2]
[359695679,1746259475228,-454.00490985,0.00019791,2]
[359695680,1746259475278,-450.0,0.00019791,2]
[359695681,1746259475328,-450.0,0.00019791,2]
[359695682,1746259475376,-454.24872668,0.00019791,2]
[359695683,1746259475422,-513.09001694,0.00019791,2]
[359695684,1746259475469,-450.0,0.00019791,2]
[359695685,1746259475516,-450.0,0.00019791,2]
[359695686,1746259475560,-500.0,0.00019791,2]
[359695687,1746259475608,-450.0,0.00019791,2]
[359695688,1746259475654,-757.76,0.00019791,2]
[359695689,1746259475700,-452.85168249,0.00019791,2]
[359695690,1746259475745,-450.0,0.00019791,2]
[359695691,1746259475792,-2516.69,0.00019791,2]
[359695692,1746259475842,-510.4421996,0.00019791,2]
[359695693,1746259475889,-450.0,0.00019791,2]
[359695694,1746259475940,-450.0,0.00019791,2]
[359695695,1746259475990,-450.0,0.00019791,2]
[359695696,1746259476041,-450.0,0.00019791,2]
[359695697,1746259476094,-450.0,0.00019791,2]
[359695698,1746259476150,-514.10551582,0.00019791,2]
[359695699,1746259476199,-450.0,0.00019791,2]
[359695700,1746259476248,-457.78320675,0.00019791,2]
[359695701,1746259476297,-450.0,0.00019791,2]
[359695702,1746259476350,-1094.05,0.00019791,2]
[359695703,1746259476400,-583.28041405,0.00019791,2]
[359695704,1746259476450,-455.53067338,0.00019791,2]
[359695705,1746259476499,-450.0,0.00019791,2]
[359695706,1746259476547,-1004.14689732,0.00019791,2]
[359695707,1746259476595,-225.52852028,0.00019791,2]
[359695708,1746259476645,-450.0,0.00019791,2]
[359695709,1746259476691,-450.0,0.00019791,2]
[359695710,1746259476738,-461.91390621,0.00019791,2]
[359695711,1746259476784,-456.67261205,0.00019791,2]
[359695712,1746259476829,-450.0,0.00019791,2]
[359695713,1746259476878,-450.0,0.00019791,2]
[359695714,1746259476924,-450.0,0.00019791,2]
[359695715,1746259476970,-2253.66,0.00019791,2]
[359695716,1746259477017,-456.88639531,0.00019791,2]
[359695717,1746259477064,-450.0,0.00019791,2]
[359695718,1746259477125,-450.0,0.00019791,2]
[359695719,1746259477191,-450.0,0.00019791,2]
[359695720,1746259477243,-542.64107712,0.00019791,2]
[359695721,1746259477292,-746.33,0.00019791,2]
[359695722,1746259477339,-526.82187632,0.00019791,2]
[359695723,1746259477384,-450.0,0.00019791,2]
[359695724,1746259477432,-450.0,0.00019791,2]
[359695725,1746259477476,-450.0,0.00019791,2]
[359695726,1746259477522,-450.0,0.00019791,2]
[359695727,1746259477570,-500.0,0.00019791,2]
[359695728,1746259477616,-450.0,0.00019791,2]
[359695729,1746259477663,-450.0,0.00019791,2]
[359695730,1746259477706,-458.0059637,0.00019791,2]
[359695731,1746259477752,-450.0,0.00019791,2]
[359695732,1746259477798,-474.77099196,0.00019791,2]
[359695733,1746259477844,-450.0,0.00019791,2]
[359695734,1746259477895,-912.77,0.00019791,2]
[359695735,1746259477944,-472.41553206,0.00019791,2]
[359695736,1746259477993,-782.44,0.00019791,2]
[359695737,1746259478043,-450.0,0.00019791,2]
[359695738,1746259478092,-450.0,0.00019791,2]
[359695739,1746259478141,-595.69,0.00019791,2]
[359695740,1746259478203,-523.22269424,0.00019791,2]
[359695741,1746259478253,-450.0,0.00019791,2]
[359695742,1746259478303,-457.82684753,0.00019791,2]
[359695743,1746259478355,-450.0,0.00019791,2]
[359695744,1746259478403,-450.0,0.00019791,2]
[359695745,1746259478450,-510.1275576,0.00019791,2]
[359695746,1746259478500,-450.0,0.00019791,2]
[359695747,1746259478548,-633.69,0.00019791,2]
[359695748,1746259478596,-450.0,0.00019791,2]
[359695749,1746259478642,-450.0,0.00019791,2]
[359695750,1746259478688,-450.0,0.00019791,2]
[359695751,1746259478736,-367.71059881,0.00019791,2]
[359695752,1746259478783,-460.66349383,0.00019791,2]
[359695753,1746259478829,-466.56265969,0.00019791,2]
[359695754,1746259478877,-1146.16,0.00019791,2]
[359695755,1746259478925,-464.65064527,0.00019791,2]
[359695756,1746259478974,-450.0,0.00019791,2]
[359695757,1746259479022,-450.0,0.00019791,2]
[359695758,1746259479070,-450.0,0.00019791,2]
[359695759,1746259479114,-450.0,0.00019791,2]
[359695760,1746259479163,-453.14751422,0.00019791,2]
[359695761,1746259479219,-546.57131559,0.00019791,2]
[359695762,1746259479264,-450.0,0.00019791,2]
[359695763,1746259479312,-459.83883118,0.00019791,2]
[359695764,1746259479360,-450.0,0.00019791,2]
[359695765,1746259479409,-513.68333459,0.00019791,2]
[359695766,1746259479456,-466.62201435,0.00019791,2]
[359695767,1746259479503,-545.65,0.00019791,2]
[359695768,1746259479551,-520.38338388,0.00019791,2]
[359695769,1746259479601,-450.0,0.00019791,2]
[359695770,1746259479649,-450.0,0.00019791,2]
[359695771,1746259479695,-450.0,0.00019791,2]
[359695772,1746259479741,-484.93610212,0.00019791,2]
[359695773,1746259479788,-450.0,0.00019791,2]
[359695774,1746259479837,-386.12069982,0.00019791,2]
[359695775,1746259479884,-300.0,0.00019791,2]
[359695776,1746259479928,-450.0,0.00019791,2]
[359695777,1746259479976,-582.87,0.00019791,2]
[359695778,1746259480032,-450.0,0.00019791,2]
[359695779,1746259480085,-450.0,0.00019791,2]
[359695780,1746259480136,-450.0,0.00019791,2]
[359695781,1746259480184,-929.09,0.00019791,2]
[359695782,1746259480235,-450.0,0.00019791,2]
[359695783,1746259480286,-450.0,0.00019791,2]
[359695784,1746259480336,-450.0,0.00019791,2]
[359695785,1746259480387,-450.0,0.00019791,2]
[359695786,1746259480436,-522.48565583,0.00019791,2]
[359695787,1746259480483,-450.0,0.00019791,2]
[359695788,1746259480540,-547.2350554,0.00019791,2]
[359695789,1746259480592,-450.0,0.00019791,2]
[359695790,1746259480640,-450.0,0.00019791,2]
[359695791,1746259480696,-450.0,0.00019791,2]
[359695792,1746259480741,-450.0,0.00019791,2]
[359695793,1746259480791,-450.0,0.00019791,2]
[359695794,1746259480844,-448.06051244,0.00019791,2]
[359695795,1746259480893,-349.85521944,0.00019791,2]
[359695796,1746259480944,-450.0,0.00019791,2]
[359695797,1746259480992,-450.0,0.00019791,2]
[359695798,1746259481043,-450.0,0.00019791,2]
[359695799,1746259481095,-450.0,0.00019791,2]
[359695800,1746259481146,-455.95974964,0.00019791,2]
[359695801,1746259481198,-450.0,0.00019791,2]
[359695802,1746259481246,-450.0,0.00019791,2]
[359695803,1746259481296,-450.0,0.00019791,2]
[359695804,1746259481344,-459.35967021,0.00019791,2]
[359695805,1746259481394,-458.33877601,0.00019791,2]
[359695806,1746259481443,-509.91269127,0.00019791,2]
[359695807,1746259481491,-450.0,0.00019791,2]
[359695808,1746259481538,-453.06786334,0.00019791,2]
[359695809,1746259481585,-450.0,0.00019791,2]
[359695810,1746259481632,-450.0,0.00019791,2]
[359695811,1746259481688,-727.65,0.00019791,2]
[359695812,1746259481734,-450.0,0.00019791,2]
[359695813,1746259481779,-450.0,0.00019791,2]
[359695814,1746259481827,-450.0,0.00019791,2]
[359695815,1746259482170,-568.15,0.00019791,2]
[359695816,1746259482217,-453.59640617,0.00019791,2]
[359695817,1746259482266,-506.01156426,0.00019791,2]
[359695818,1746259482322,-450.0,0.00019791,2]
[359695819,1746259482368,-457.77396252,0.00019791,2]
[359695820,1746259482420,-2456.52,0.00019791,2]
[359695821,1746259482468,-500.0,0.00019791,2]
[359695822,1746259482515,-450.0,0.00019791,2]
[359695823,1746259482571,-450.0,0.00019791,2]
[359695824,1746259482623,-450.0,0.00019791,2]
[359695825,1746259482674,-463.12601813,0.00019791,2]
[359695826,1746259482722,-450.0,0.00019791,2]
[359695827,1746259482772,-450.0,0.00019791,2]
[359695828,1746259482826,-450.0,0.00019791,2]
[359695829,1746259482875,-560.94173237,0.00019791,2]
[359695830,1746259482923,-450.0,0.00019791,2]
[359695831,1746259482971,-450.0,0.00019791,2]
[359695832,1746259483019,-450.0,0.00019791,2]
[359695833,1746259483068,-458.12286135,0.00019791,2]
[359695834,1746259483115,-531.65,0.00019791,2]
[359695835,1746259483163,-530.36590608,0.00019791,2]
[359695836,1746259483211,-450.0,0.00019791,2]
[359695837,1746259483259,-450.0,0.00019791,2]
[359695838,1746259483309,-450.0,0.00019791,2]
[359695839,1746259483362,-450.0,0.00019791,2]
[359695840,1746259483411,-500.0,0.00019791,2]
[359695841,1746259483459,-450.0,0.00019791,2]
[359695842,1746259483508,-150.0,0.00019791,2]
[359695843,1746259483556,-1150.86,0.00019791,2]
[359695844,1746259483606,-150.0,0.00019791,2]
[359695845,1746259483653,-450.0,0.00019791,2]
[359695846,1746259483701,-215.37404137,0.00019791,2]